bitfinex/quotes_BTCUSD_20240613
["timestamp","ask_amount","ask_price","bid_price","bid_amount"]
[1718288461349,0.26552049,67560.0,67548.0,0.4718]
[1718288461570,0.26552049,67560.0,67552.0,0.148033]
[1718288462001,0.05,67560.0,67559.0,0.14819618]
[1718288462206,0.14452049,67567.0,67559.0,0.14449811]
[1718288462421,0.00017184,67564.0,67560.0,0.14431993]
[1718288462626,0.09434865,67561.0,67560.0,0.14431993]
[1718288462829,0.11434865,67561.0,67560.0,0.14431993]
[1718288463248,0.05,67563.0,67560.0,0.14431993]
[1718288463462,0.14434865,67567.0,67566.0,0.148003]
[1718288463680,0.1017,67572.0,67571.0,0.147992]
[1718288463681,0.05,67572.0,67571.0,0.147992]
[1718288463901,0.05017184,67573.0,67572.0,0.14799]
[1718288464347,0.05017184,67573.0,67566.0,0.14431993]
[1718288464569,0.00017184,67566.0,67561.0,0.023]
[1718288464811,0.00017184,67566.0,67559.0,0.00017818]
[1718288464812,0.11452049,67560.0,67559.0,0.00017818]
[1718288465316,0.16452049,67560.0,67559.0,0.00017818]
[1718288465775,0.17452049,67560.0,67559.0,0.00017818]
[1718288466256,0.16452049,67560.0,67559.0,0.00017818]
[1718288467953,0.05017184,67560.0,67559.0,0.01417818]
[1718288468139,0.05,67563.0,67559.0,0.01417818]
[1718288468406,0.05,67563.0,67562.0,0.148012]
[1718288468853,0.05017184,67560.0,67559.0,0.01417818]
[1718288469090,0.05017184,67560.0,67559.0,0.02117818]
[1718288469091,0.16452049,67560.0,67559.0,0.02117818]
[1718288469314,0.16552049,67560.0,67559.0,0.02117818]
[1718288469517,0.16552049,67560.0,67559.0,0.01417818]
[1718288469728,0.001,67560.0,67559.0,0.50651611]
[1718288469935,0.001,67560.0,67559.0,0.52951611]
[1718288470149,0.001,67560.0,67559.0,1.40059011]
[1718288470375,0.001,67560.0,67559.0,1.21449311]
[1718288470603,0.001,67560.0,67559.0,1.31055531]
[1718288470815,0.001,67560.0,67559.0,1.32455531]
[1718288471030,0.001,67560.0,67559.0,1.62624366]
[1718288471464,0.05,67578.0,67577.0,0.147979]
[1718288471668,0.00017184,67580.0,67579.0,0.147974]
[1718288471886,0.05,67583.0,67579.0,0.14431993]
[1718288472109,0.09452049,67587.0,67579.0,0.84431993]
[1718288472110,0.05017184,67587.0,67579.0,0.84431993]
[1718288472316,0.05,67587.0,67580.0,0.14431993]
[1718288472523,0.05,67587.0,67586.0,0.147959]
[1718288472753,0.16434865,67588.0,67587.0,0.147957]
[1718288472973,0.11434865,67588.0,67587.0,0.147957]
[1718288473175,0.05,67595.0,67594.0,0.147942]
[1718288473386,0.00017184,67596.0,67595.0,0.147939]
[1718288473603,0.0934,67607.0,67595.0,0.147939]
[1718288473604,0.05017184,67601.0,67595.0,0.14431993]
[1718288473822,0.05017184,67601.0,67596.0,0.16731993]
[1718288473823,0.05,67599.0,67596.0,0.16731993]
[1718288474049,0.00017184,67601.0,67596.0,0.16731993]
[1718288474050,0.05017184,67601.0,67596.0,0.16731993]
[1718288474285,0.00639234,67600.0,67596.0,0.16731993]
[1718288474729,0.05,67597.0,67596.0,0.16731993]
[1718288475167,0.05,67597.0,67587.0,0.2]
[1718288475168,0.09434865,67594.0,67587.0,0.2]
[1718288475401,0.11434865,67591.0,67588.0,0.16731993]
[1718288475638,0.11434865,67591.0,67588.0,0.14431993]
[1718288475639,0.00639234,67590.0,67588.0,0.14431993]
[1718288476059,0.11434865,67589.0,67588.0,0.14431993]
[1718288476291,0.09434865,67585.0,67579.0,0.5]
[1718288476504,0.00017184,67590.0,67585.0,0.2]
[1718288476505,0.05017184,67590.0,67585.0,0.2]
[1718288476711,0.00639234,67589.0,67586.0,0.14431993]
[1718288477168,0.00639234,67589.0,67588.0,0.014]
[1718288477608,0.00017184,67596.0,67588.0,0.18131993]
[1718288477826,0.05017184,67595.0,67590.0,0.14795]
[1718288478041,0.05,67594.0,67589.0,0.14431993]
[1718288478435,0.16434865,67597.0,67589.0,0.14431993]
[1718288478638,0.16452049,67599.0,67590.0,0.023]
[1718288478889,0.00639234,67598.0,67594.0,0.14794]
[1718288479059,0.05639234,67598.0,67595.0,0.14431993]
[1718288479268,0.05,67597.0,67595.0,0.14431993]
[1718288479467,0.00639234,67598.0,67595.0,0.14431993]
[1718288479711,0.00639234,67598.0,67595.0,0.29225893]
[1718288480052,0.05639234,67598.0,67595.0,0.29225893]
[1718288480504,0.16434865,67596.0,67595.0,0.14431993]
[1718288480739,0.11434865,67591.0,67589.0,0.014]
[1718288481003,0.17091283,67590.0,67589.0,0.014]
[1718288481196,0.24307279,67590.0,67589.0,0.014]
[1718288481405,0.25307279,67590.0,67589.0,0.014]
[1718288481605,0.25307279,67590.0,67575.0,0.4718]
[1718288481606,0.24307279,67590.0,67575.0,0.4718]
[1718288481861,0.00017184,67577.0,67575.0,0.4718]
[1718288482464,0.00017184,67577.0,67576.0,0.147981]
[1718288482666,0.00017184,67577.0,67575.0,0.4718]
[1718288482785,0.14434865,67585.0,67576.0,0.14431993]
[1718288482989,0.14452049,67586.0,67585.0,0.147961]
[1718288483436,0.05017184,67586.0,67585.0,0.147961]
[1718288483638,0.05,67589.0,67585.0,0.147961]
[1718288483838,0.05,67589.0,67588.0,0.147955]
[1718288484045,0.09452049,67591.0,67589.0,0.147953]
[1718288484242,0.05017184,67591.0,67590.0,0.14795]
[1718288484486,0.14452049,67591.0,67586.0,0.14431993]
[1718288484688,0.05,67589.0,67586.0,0.29227793]
[1718288484891,0.05,67589.0,67587.0,0.147955]
[1718288485063,0.000946,67603.0,67595.0,0.5]
[1718288485270,0.10452049,67591.0,67588.0,0.5]
[1718288485477,0.11434865,67589.0,67588.0,0.5]
[1718288486174,0.09434865,67590.0,67588.0,0.5]
[1718288486392,0.02017184,67591.0,67588.0,0.5]
[1718288486393,0.00017184,67591.0,67588.0,0.5]
[1718288486811,0.001,67589.0,67588.0,0.514]
[1718288487186,0.11434865,67589.0,67588.0,0.5]
[1718288487454,0.11452049,67589.0,67588.0,0.5]
[1718288487659,0.11452049,67589.0,67588.0,0.514]
[1718288487869,0.11452049,67589.0,67588.0,0.5]
[1718288488045,0.00017184,67589.0,67588.0,0.5]
[1718288488250,0.00017184,67589.0,67588.0,0.514]
[1718288488251,0.00117184,67589.0,67588.0,0.514]
[1718288488459,0.11552049,67589.0,67588.0,0.514]
[1718288488666,0.11552049,67589.0,67588.0,0.528]
[1718288489280,0.11552049,67589.0,67588.0,0.514]
[1718288489700,0.11552049,67589.0,67588.0,0.528]
[1718288490144,0.11552049,67589.0,67588.0,0.028]
[1718288490351,0.16452049,67589.0,67588.0,0.014]
[1718288490762,0.16552049,67589.0,67588.0,0.028]
[1718288491118,0.05017184,67589.0,67588.0,0.014]
[1718288491319,0.05017184,67589.0,67588.0,0.161955]
[1718288491518,0.16552049,67589.0,67588.0,0.028]
[1718288491933,0.14552049,67589.0,67588.0,0.028]
[1718288492110,0.05117184,67589.0,67588.0,0.028]
[1718288492314,0.05117184,67589.0,67588.0,0.32027493]
[1718288492315,0.001,67589.0,67588.0,0.32027493]
[1718288492521,0.001,67589.0,67588.0,0.34327493]
[1718288492721,0.001,67589.0,67588.0,0.4374993]
[1718288494104,0.001946,67589.0,67588.0,0.4374993]
[1718288497134,0.001946,67589.0,67588.0,0.7334093]
[1718288497336,0.001946,67589.0,67588.0,0.4374993]
[1718288497715,0.001946,67589.0,67588.0,0.7334093]
[1718288498879,0.001946,67589.0,67588.0,1.0293193]
[1718288499134,0.001946,67589.0,67588.0,0.63918493]
[1718288499376,0.001946,67589.0,67588.0,1.03009295]
[1718288499585,0.001946,67589.0,67588.0,1.1357443]
[1718288500248,0.001946,67589.0,67588.0,1.4316543]
[1718288500465,0.001946,67589.0,67588.0,1.5222543]
[1718288500715,0.001946,67589.0,67588.0,1.5082543]
[1718288500954,0.000946,67589.0,67588.0,1.4942543]
[1718288501190,0.000946,67589.0,67588.0,1.5222543]
[1718288501429,0.001946,67589.0,67588.0,1.5222543]
[1718288501650,0.001946,67589.0,67588.0,1.2263443]
[1718288501830,0.001946,67589.0,67588.0,1.22069295]
[1718288502021,0.001946,67589.0,67588.0,1.2263443]
[1718288502670,0.001946,67589.0,67588.0,0.67135088]
[1718288502917,0.001946,67589.0,67588.0,0.26731795]
[1718288503374,0.001946,67589.0,67588.0,0.41527295]
[1718288503576,0.001946,67589.0,67588.0,0.71118295]
[1718288503787,0.001946,67589.0,67588.0,0.70952269]
[1718288504000,0.001946,67589.0,67588.0,0.43661269]
[1718288504368,0.001946,67589.0,67588.0,0.28865769]
[1718288504598,0.001946,67589.0,67588.0,0.43661269]
[1718288504804,0.001946,67589.0,67588.0,0.28865769]
[1718288506183,0.001946,67589.0,67588.0,0.43661269]
[1718288506605,0.001946,67589.0,67588.0,0.46089677]
[1718288507306,0.28349465,67589.0,67588.0,0.28994177]
[1718288507540,0.28366649,67589.0,67588.0,0.05228408]
[1718288507760,0.28366649,67589.0,67588.0,0.028]
[1718288507978,0.33366649,67589.0,67588.0,0.028]
[1718288508387,0.33366649,67589.0,67588.0,0.014]
[1718288508636,0.33266649,67589.0,67577.0,0.5]
[1718288508857,0.11434865,67581.0,67578.0,0.23726138]
[1718288509063,0.21831784,67589.0,67578.0,0.23726138]
[1718288509064,0.14434865,67586.0,67578.0,0.14431993]
[1718288509273,0.09434865,67584.0,67579.0,0.170973]
[1718288509484,0.09434865,67584.0,67580.0,0.14431993]
[1718288509691,0.11434865,67585.0,67581.0,0.023]
[1718288509869,0.11434865,67583.0,67582.0,0.14431993]
[1718288510173,0.11434865,67582.0,67581.0,0.14431993]
[1718288510399,0.11434865,67582.0,67577.0,0.51805813]
[1718288510608,0.09434865,67578.0,67577.0,0.51805813]
[1718288510837,0.00017184,67583.0,67577.0,0.54105813]
[1718288511052,0.00017184,67583.0,67578.0,0.023]
[1718288511644,0.00017184,67583.0,67579.0,0.14431993]
[1718288512236,0.00017184,67583.0,67582.0,0.012]
[1718288512618,0.00017184,67583.0,67579.0,0.14431993]
[1718288512861,0.00017184,67583.0,67579.0,0.15831993]
[1718288513103,0.09452049,67583.0,67579.0,0.15831993]
[1718288513327,0.02639234,67584.0,67579.0,0.14431993]
[1718288513328,0.00017184,67584.0,67579.0,0.14431993]
[1718288513770,0.00017184,67584.0,67582.0,0.012]
[1718288513969,0.05017184,67586.0,67585.0,0.147961]
[1718288514202,0.00017184,67583.0,67582.0,0.012]
[1718288514403,0.11452049,67583.0,67582.0,0.012]
[1718288514633,0.16452049,67583.0,67582.0,0.012]
[1718288515143,0.17452049,67583.0,67582.0,0.012]
[1718288515474,0.34162049,67583.0,67582.0,0.026]
[1718288515679,0.33162049,67583.0,67582.0,0.014]
[1718288515886,0.33162049,67583.0,67569.0,0.8969]
[1718288515887,0.09434865,67577.0,67569.0,0.8969]
[1718288516093,0.10074099,67577.0,67570.0,0.60027972]
[1718288516292,0.00639234,67577.0,67570.0,0.16731993]
[1718288516572,0.00656418,67577.0,67570.0,0.16731993]
[1718288516785,0.09434865,67574.0,67570.0,0.16731993]
[1718288517002,0.05,67590.0,67587.0,0.147956]
[1718288517222,0.02017184,67597.0,67584.0,0.5]
[1718288517223,0.14434865,67586.0,67584.0,0.5]
[1718288517501,0.16434865,67586.0,67585.0,0.14431993]
[1718288517705,0.16434865,67586.0,67576.0,0.4718]
[1718288517706,0.09434865,67582.0,67576.0,0.4718]
[1718288517926,0.11434865,67582.0,67577.0,0.16731993]
[1718288518140,0.09434865,67581.0,67577.0,0.16731993]
[1718288518368,0.00017184,67580.0,67577.0,0.14431993]
[1718288519432,0.09434865,67578.0,67577.0,0.14431993]
[1718288520350,0.00017184,67580.0,67577.0,0.15831993]
[1718288520579,0.20772049,67578.0,67577.0,0.028]
[1718288520799,0.20772049,67578.0,67577.0,0.014]
[1718288521213,0.20772049,67578.0,67577.0,0.028]
[1718288522251,0.20772049,67578.0,67577.0,0.014]
[1718288522500,0.09434865,67574.0,67569.0,0.01722898]
[1718288522711,0.01,67586.0,67569.0,0.01722898]
[1718288522712,0.14434865,67582.0,67577.0,0.014]
[1718288522915,0.09434865,67581.0,67578.0,0.16731993]
[1718288523117,0.11434865,67579.0,67578.0,0.16731993]
[1718288523322,0.11434865,67579.0,67578.0,0.14431993]
[1718288524561,0.11434865,67579.0,67578.0,0.15831993]
[1718288526401,0.11434865,67579.0,67578.0,0.14431993]
[1718288526816,0.14452049,67582.0,67578.0,0.15631993]
[1718288527034,0.093,67586.0,67579.0,0.523]
[1718288527035,0.000946,67584.0,67579.0,0.523]
[1718288527267,0.000946,67584.0,67583.0,0.147966]
[1718288527476,0.000946,67584.0,67583.0,0.40898593]
[1718288528123,0.000946,67584.0,67583.0,1.1450441]
[1718288528336,0.000946,67584.0,67583.0,0.84912996]
[1718288528546,0.000946,67584.0,67583.0,0.80491793]
[1718288528764,0.000946,67584.0,67583.0,0.84913168]
[1718288529205,0.000946,67584.0,67583.0,0.80491793]
[1718288530075,0.000946,67584.0,67583.0,0.86313168]
[1718288530302,0.000946,67584.0,67583.0,0.56719968]
[1718288530521,0.000946,67584.0,67583.0,0.53698593]
[1718288531763,0.000946,67584.0,67583.0,0.83291793]
[1718288532538,0.000946,67584.0,67583.0,0.87713168]
[1718288533321,0.000946,67584.0,67583.0,0.83291793]
[1718288533518,0.000946,67584.0,67583.0,0.87713168]
[1718288533871,0.000946,67584.0,67583.0,1.17306368]
[1718288534964,0.000946,67584.0,67583.0,0.87713168]
[1718288535692,0.000946,67584.0,67583.0,0.83291793]
[1718288536090,0.000946,67584.0,67583.0,1.12884993]
[1718288536512,0.000946,67584.0,67583.0,1.17306368]
[1718288537570,0.000946,67584.0,67583.0,0.87713168]
[1718288537817,0.000946,67584.0,67583.0,0.87712378]
[1718288538216,0.000946,67584.0,67583.0,1.51881594]
[1718288538549,0.000946,67584.0,67583.0,1.24496934]
[1718288538861,0.000946,67584.0,67583.0,1.17867809]
[1718288539890,0.000946,67584.0,67583.0,1.12884993]
[1718288540099,0.000946,67584.0,67583.0,0.73921793]
[1718288540394,0.000946,67584.0,67583.0,1.03514993]
[1718288540783,0.000946,67584.0,67583.0,0.73921793]
[1718288541049,0.000946,67584.0,67583.0,0.44328593]
[1718288542046,0.000946,67584.0,67583.0,1.03514993]
[1718288542261,0.000946,67584.0,67583.0,1.07935342]
[1718288543678,0.000946,67584.0,67583.0,1.09721876]
[1718288543895,0.000946,67584.0,67583.0,0.31318527]
[1718288544112,0.09529465,67584.0,67583.0,0.29018527]
[1718288544316,0.11529465,67584.0,67583.0,0.19018527]
[1718288544466,0.17168699,67584.0,67583.0,0.028]
[1718288544671,0.17185883,67584.0,67583.0,0.028]
[1718288544879,0.24795883,67584.0,67583.0,0.028]
[1718288545096,0.34355883,67584.0,67583.0,0.028]
[1718288545293,0.34355883,67584.0,67583.0,0.014]
[1718288546047,0.11434865,67574.0,67573.0,0.7]
[1718288546260,0.11434865,67574.0,67573.0,0.84431993]
[1718288546454,0.09434865,67574.0,67573.0,0.86731993]
[1718288546878,0.09434865,67575.0,67573.0,0.86731993]
[1718288547174,0.11434865,67574.0,67573.0,0.723]
[1718288547408,0.09434865,67575.0,67573.0,0.737]
[1718288547579,0.09434865,67575.0,67574.0,0.023]
[1718288547782,0.11434865,67575.0,67574.0,0.023]
[1718288549588,0.28484865,67575.0,67574.0,0.14431993]
[1718288550198,0.28484865,67575.0,67574.0,0.15831993]
[1718288551348,0.28484865,67575.0,67574.0,0.17231993]
[1718288551562,0.34502049,67575.0,67574.0,0.028]
[1718288551760,0.33502049,67575.0,67574.0,0.028]
[1718288552000,0.34502049,67575.0,67574.0,0.028]
[1718288552418,0.33502049,67575.0,67574.0,0.028]
[1718288553032,0.34502049,67575.0,67574.0,0.028]
[1718288553440,0.49300349,67575.0,67574.0,0.028]
[1718288554114,0.34502049,67575.0,67574.0,0.028]
[1718288554573,0.49300349,67575.0,67574.0,0.028]
[1718288555670,0.67160349,67575.0,67574.0,0.028]
[1718288556239,0.96757049,67575.0,67574.0,0.028]
[1718288556613,0.96757049,67575.0,67574.0,0.014]
[1718288556795,0.96757049,67575.0,67560.0,0.00086]
[1718288556796,0.11434865,67561.0,67560.0,0.00086]
[1718288557619,0.11452049,67561.0,67560.0,0.00086]
[1718288558392,0.05,67563.0,67561.0,0.148014]
[1718288558577,0.05,67563.0,67560.0,0.15417993]
[1718288558779,0.14434865,67563.0,67560.0,0.30219393]
[1718288559310,0.14434865,67563.0,67560.0,0.15417993]
[1718288559531,0.09434865,67561.0,67560.0,0.15417993]
[1718288559753,0.11434865,67561.0,67560.0,0.15417993]
[1718288559949,0.11434865,67561.0,67560.0,0.14517993]
[1718288560832,0.11434865,67561.0,67560.0,0.15917993]
[1718288561296,0.11434865,67561.0,67560.0,0.16817993]
[1718288561527,0.11434865,67561.0,67560.0,0.15917993]
[1718288561962,0.11452049,67561.0,67560.0,0.02686]
[1718288562393,0.11452049,67561.0,67560.0,0.01286]
[1718288562617,0.33642049,67561.0,67560.0,0.01286]
[1718288562831,0.53593654,67561.0,67560.0,0.01286]
[1718288563046,0.71453654,67561.0,67560.0,0.01286]
[1718288563537,1.11056454,67561.0,67560.0,0.01286]
[1718288563542,1.55091247,67561.0,67560.0,0.01286]
[1718288563838,1.55091247,67561.0,67534.0,0.00856]
[1718288563839,0.11434865,67535.0,67534.0,0.00856]
[1718288564086,0.11452049,67535.0,67534.0,0.00856]
[1718288565340,0.11452049,67535.0,67534.0,0.02056]
[1718288565725,0.16452049,67535.0,67534.0,0.00856]
[1718288566050,0.16452049,67535.0,67534.0,0.02156]
[1718288567042,0.0725,67536.0,67534.0,0.02156]
[1718288567043,0.05,67536.0,67534.0,0.02156]
[1718288567271,0.05,67540.0,67539.0,0.148062]
[1718288567533,0.01,67544.0,67539.0,0.14431993]
[1718288567824,0.05017184,67549.0,67545.0,0.148049]
[1718288568081,0.0931,67553.0,67545.0,0.148049]
[1718288568082,0.05,67553.0,67546.0,0.16731993]
[1718288568595,0.05,67549.0,67546.0,0.16731993]
[1718288568597,0.05,67553.0,67546.0,0.16731993]
[1718288568860,0.05,67558.0,67556.0,0.148025]
[1718288569127,0.09434865,67561.0,67557.0,0.14431993]
[1718288569347,0.05,67565.0,67562.0,0.2]
[1718288569559,0.05017184,67565.0,67564.0,0.148007]
[1718288569778,0.05017184,67565.0,67562.0,0.7]
[1718288569779,0.11434865,67563.0,67562.0,0.7]
[1718288569994,0.00017184,67564.0,67563.0,0.14801]
[1718288570207,0.00017184,67564.0,67562.0,0.7]
[1718288570440,0.09434865,67563.0,67562.0,0.7]
[1718288570656,0.11434865,67563.0,67562.0,0.7]
[1718288571389,0.11434865,67563.0,67557.0,0.14431993]
[1718288571390,0.09434865,67562.0,67557.0,0.14431993]
[1718288571601,0.09434865,67562.0,67558.0,0.023]
[1718288571819,0.09434865,67562.0,67559.0,0.14431993]
[1718288572056,0.09434865,67562.0,67552.0,0.148032]
[1718288572057,0.09434865,67556.0,67548.0,0.648042]
[1718288572283,0.09434865,67556.0,67554.0,0.148027]
[1718288572524,0.00017184,67559.0,67555.0,0.16731993]
[1718288572525,0.09434865,67558.0,67555.0,0.16731993]
[1718288572762,0.001,67563.0,67562.0,0.148012]
[1718288572972,0.00117184,67563.0,67562.0,0.148012]
[1718288573178,0.00117184,67563.0,67559.0,0.5]
[1718288573179,0.05,67562.0,67559.0,0.5]
[1718288573386,0.05,67562.0,67560.0,0.14431993]
[1718288573604,0.05,67561.0,67560.0,0.14431993]
[1718288574880,0.16434865,67561.0,67560.0,0.15631993]
[1718288575073,0.05,67561.0,67560.0,0.15631993]
[1718288575285,0.00017184,67564.0,67560.0,0.14431993]
[1718288575573,0.00017184,67564.0,67563.0,0.14801]
[1718288576027,0.00017184,67564.0,67560.0,0.15431993]
[1718288576261,0.00017184,67564.0,67561.0,0.09861001]
[1718288576482,0.00017184,67564.0,67561.0,0.14431993]
[1718288576701,0.05,67565.0,67561.0,0.14431993]
[1718288577235,0.05,67565.0,67562.0,0.09870257]
[1718288577456,0.05,67574.0,67567.0,0.5]
[1718288577686,0.000946,67584.0,67569.0,0.1786]
[1718288577687,0.05,67580.0,67569.0,0.1786]
[1718288577907,0.05,67580.0,67568.0,0.17323915]
[1718288577908,0.050946,67584.0,67583.0,0.147966]
[1718288578140,0.000946,67584.0,67583.0,0.29228593]
[1718288578364,0.000946,67584.0,67583.0,0.3909798]
[1718288578579,0.000946,67584.0,67583.0,0.4139798]
[1718288578857,0.000946,67584.0,67583.0,0.2660138]
[1718288579083,0.11529465,67584.0,67583.0,0.2430138]
[1718288579290,0.11529465,67584.0,67583.0,0.14431993]
[1718288579515,0.11529465,67584.0,67583.0,0.15831993]
[1718288579950,0.000946,67584.0,67583.0,0.15831993]
[1718288580428,0.11529465,67584.0,67583.0,0.15831993]
[1718288580684,0.11529465,67584.0,67583.0,0.17031993]
[1718288580870,0.11646649,67584.0,67583.0,0.026]
[1718288581099,0.20436649,67584.0,67583.0,0.014]
[1718288581589,0.20436649,67584.0,67583.0,0.021]
[1718288581819,0.20436649,67584.0,67572.0,0.7]
[1718288581820,0.00017184,67579.0,67572.0,0.7]
[1718288582060,0.11434865,67574.0,67573.0,0.16731993]
[1718288582516,0.00017184,67579.0,67573.0,0.41570334]
[1718288582740,0.11434865,67578.0,67573.0,0.16731993]
[1718288582953,0.09434865,67576.0,67574.0,0.10039482]
[1718288583188,0.11434865,67575.0,67573.0,0.023]
[1718288583419,0.11434865,67566.0,67564.0,0.7]
[1718288583631,0.11434865,67558.0,67552.0,0.940933]
[1718288583852,0.11434865,67560.0,67553.0,0.55865351]
[1718288584053,0.09434865,67564.0,67554.0,0.10094768]
[1718288584339,0.09434865,67560.0,67555.0,0.10094768]
[1718288584567,0.11434865,67560.0,67556.0,0.14431993]
[1718288584776,0.11434865,67562.0,67556.0,0.14431993]
[1718288585014,0.11434865,67562.0,67557.0,0.023]
[1718288585254,0.11434865,67562.0,67558.0,0.14431993]
[1718288585463,0.11434865,67560.0,67559.0,0.023]
[1718288585711,0.11434865,67560.0,67559.0,0.16731993]
[1718288587285,0.11452049,67559.0,67558.0,0.014]
[1718288587494,0.11452049,67559.0,67558.0,0.027]
[1718288587942,0.16452049,67559.0,67558.0,0.014]
[1718288588638,0.11434865,67554.0,67552.0,0.01748185]
[1718288588850,0.11434865,67554.0,67553.0,0.14431993]
[1718288589278,0.11434865,67554.0,67548.0,0.6718]
[1718288589279,0.09434865,67549.0,67548.0,0.68946394]
[1718288589486,0.09434865,67549.0,67548.0,0.38498387]
[1718288590602,0.11434865,67550.0,67548.0,0.38498387]
[1718288590817,0.11552049,67554.0,67553.0,0.012]
[1718288591047,0.11552049,67554.0,67549.0,0.16731993]
[1718288591048,0.11452049,67554.0,67549.0,0.14431993]
[1718288591278,0.12074099,67553.0,67550.0,0.023]
[1718288591499,0.12074099,67553.0,67551.0,0.14431993]
[1718288591713,0.11434865,67552.0,67551.0,0.14431993]
[1718288592163,0.09434865,67552.0,67551.0,0.14431993]
[1718288592385,0.11434865,67552.0,67551.0,0.14431993]
[1718288592817,0.00117184,67554.0,67551.0,0.14431993]
[1718288592818,0.11552049,67554.0,67551.0,0.14431993]
[1718288593023,0.00639234,67553.0,67551.0,0.14431993]
[1718288593446,0.09434865,67550.0,67548.0,0.03166394]
[1718288593648,0.12074099,67549.0,67548.0,0.17598387]
[1718288593854,0.12074099,67549.0,67548.0,0.16198387]
[1718288594502,0.11434865,67549.0,67548.0,0.16198387]
[1718288595168,0.11534865,67549.0,67548.0,0.17598387]
[1718288595581,0.09534865,67549.0,67548.0,0.17598387]
[1718288595799,0.12191283,67549.0,67548.0,0.014]
[1718288596004,0.24351283,67549.0,67548.0,0.014]
[1718288596883,0.24351283,67549.0,67548.0,0.028]
[1718288596884,0.22351283,67549.0,67548.0,0.028]
[1718288597095,0.22251283,67549.0,67548.0,0.014]
[1718288597315,0.24251283,67549.0,67548.0,0.014]
[1718288597487,0.09434865,67545.0,67537.0,0.1]
[1718288597697,0.11452049,67546.0,67538.0,0.29423394]
[1718288597936,0.11452049,67546.0,67539.0,0.1]
[1718288598141,0.11452049,67546.0,67540.0,0.16731993]
[1718288598350,0.09434865,67545.0,67541.0,0.10212232]
[1718288598574,0.11434865,67546.0,67542.0,0.16731993]
[1718288598786,0.00017184,67548.0,67543.0,0.10212232]
[1718288598989,0.001,67545.0,67544.0,0.29237093]
[1718288599198,0.09534865,67545.0,67544.0,0.29237093]
[1718288599411,0.09534865,67545.0,67544.0,0.24644225]
[1718288600072,0.11534865,67545.0,67544.0,0.24644225]
[1718288600292,0.11434865,67545.0,67544.0,0.24644225]
[1718288600501,0.09434865,67545.0,67544.0,0.24644225]
[1718288601173,0.11434865,67545.0,67544.0,0.14431993]
[1718288601388,0.09434865,67545.0,67544.0,0.14431993]
[1718288601661,0.11434865,67545.0,67544.0,0.14431993]
[1718288601874,0.11534865,67545.0,67544.0,0.16731993]
[1718288602554,0.35667254,67545.0,67544.0,0.023]
[1718288602769,0.50472154,67545.0,67544.0,0.023]
[1718288603215,0.50472154,67545.0,67544.0,0.009]
[1718288603474,0.90081954,67545.0,67544.0,0.009]
[1718288603691,0.16452049,67535.0,67534.0,0.00856]
[1718288603894,0.33192049,67535.0,67534.0,0.00856]
[1718288605666,0.33292049,67535.0,67534.0,0.00856]
[1718288606534,0.34292049,67535.0,67534.0,0.00856]
[1718288606774,0.49099149,67535.0,67534.0,0.00856]
[1718288607590,0.48999149,67535.0,67534.0,0.00856]
[1718288607798,0.34192049,67535.0,67534.0,0.01856]
[1718288608006,0.34492049,67535.0,67534.0,0.01856]
[1718288608212,0.34192049,67535.0,67534.0,0.00856]
[1718288608625,0.34192049,67535.0,67534.0,0.01356]
[1718288609277,0.34892049,67535.0,67534.0,0.01356]
[1718288609566,0.33892049,67535.0,67534.0,0.01356]
[1718288610211,0.33892049,67535.0,67534.0,0.00856]
[1718288610703,0.39861934,67535.0,67534.0,0.01356]
[1718288610927,1.40875227,67535.0,67534.0,0.01356]
[1718288611130,1.45875227,67535.0,67534.0,0.01356]
[1718288611337,1.46475227,67535.0,67534.0,0.00956]
[1718288611556,1.76089427,67535.0,67534.0,0.00956]
[1718288611775,1.45875227,67535.0,67534.0,0.00856]
[1718288611983,1.45875227,67535.0,67534.0,0.01356]
[1718288612191,1.46475227,67535.0,67534.0,0.01456]
[1718288612410,1.06861027,67535.0,67534.0,0.01456]
[1718288612618,0.58624042,67535.0,67534.0,0.01356]
[1718288612824,0.73431142,67535.0,67534.0,0.01356]
[1718288613045,0.74831142,67535.0,67534.0,0.01456]
[1718288613269,0.83314256,67535.0,67534.0,0.01456]
[1718288613708,1.64758652,67535.0,67534.0,0.01456]
[1718288613936,1.64758652,67535.0,67534.0,0.00956]
[1718288614168,1.64758652,67535.0,67518.0,0.00855]
[1718288614169,0.76874049,67534.0,67518.0,0.00855]
[1718288614407,1.37218035,67534.0,67518.0,0.00855]
[1718288615050,1.66832735,67534.0,67518.0,0.00855]
[1718288615497,0.53022049,67529.0,67518.0,0.00855]
[1718288615714,0.61888449,67512.0,67505.0,0.00856]
[1718288615933,0.48645449,67506.0,67505.0,0.00856]
[1718288616169,0.48645449,67506.0,67483.0,0.00857]
[1718288616170,0.32267049,67499.0,67483.0,0.00857]
[1718288616388,0.34832049,67499.0,67484.0,0.148182]
[1718288616605,0.33832049,67499.0,67478.0,1.2687]
[1718288617114,0.33832049,67499.0,67482.0,0.01748398]
[1718288617529,0.33832049,67499.0,67484.0,0.148183]
[1718288617748,0.33832049,67499.0,67487.0,0.148174]
[1718288617961,0.16452049,67499.0,67489.0,0.0962]
[1718288618815,0.34781254,67499.0,67482.0,0.5]
[1718288619023,0.67303247,67499.0,67478.0,1.2687]
[1718288619258,0.84163247,67499.0,67478.0,1.2687]
[1718288619462,0.84163247,67499.0,67498.0,0.01357]
[1718288619669,0.84263247,67499.0,67498.0,0.01357]
[1718288621237,0.84263247,67499.0,67498.0,0.00857]
[1718288621466,0.89263247,67499.0,67498.0,0.00857]
[1718288621700,1.44393247,67499.0,67498.0,0.00857]
[1718288621907,1.73923247,67499.0,67498.0,0.00857]
[1718288622146,0.52268349,67493.0,67476.0,0.00857]
[1718288622344,0.14452049,67455.0,67454.0,0.4718]
[1718288622556,0.05,67450.0,67449.0,0.43295979]
[1718288622983,0.00017184,67451.0,67450.0,0.148257]
[1718288623404,0.05017184,67456.0,67455.0,0.148246]
[1718288623819,0.09406327,67461.0,67456.0,0.0965]
[1718288623820,0.00017184,67459.0,67456.0,0.0965]
[1718288624033,0.05017184,67459.0,67456.0,0.24081993]
[1718288624247,0.05,67457.0,67456.0,0.38906393]
[1718288624666,0.05,67457.0,67456.0,0.41206393]